[Event "Titled Tuesday Blitz January 18 2022"]
[White "Ortega Amarelle, Mariano"]
[Black "Onyshchuk, Volodymyr"]
[WhiteFideId "3504301"]
[BlackFideId "14114038"]
[WhiteElo "2389"]
[BlackElo "2642"]
[Result "0-1"]
[Round "01"]
[TimeControl "180+1"]
[Date "2022.01.18"]
[WhiteClock "0:00:10"]
[BlackClock "0:01:13"]

1. e4 {[%clk 0:02:59]}  g6 {[%clk 0:02:58]} 2. d4 {[%clk 0:02:58]}  Bg7 {[%clk 0:02:58]} 3. c3 {[%clk 0:02:55]}  d6 {[%clk 0:02:58]} 4. Bd3 {[%clk 0:02:55]}  a6 {[%clk 0:02:55]} 5. Nf3 {[%clk 0:02:54]}  b6 {[%clk 0:02:55]} 6. O-O {[%clk 0:02:54]}  Bb7 {[%clk 0:02:56]} 7. a4 {[%clk 0:02:54]}  Nd7 {[%clk 0:02:56]} 8. Re1 {[%clk 0:02:55]}  e6 {[%clk 0:02:55]} 9. Nbd2 {[%clk 0:02:55]}  Ne7 {[%clk 0:02:55]} 10. Nc4 {[%clk 0:02:48]}  h6 {[%clk 0:02:53]} 11. h4 {[%clk 0:02:42]}  O-O {[%clk 0:02:50]} 12. e5 {[%clk 0:02:42]}  dxe5 {[%clk 0:02:43]} 13. Ncxe5 {[%clk 0:02:41]}  Nxe5 {[%clk 0:02:41]} 14. Nxe5 {[%clk 0:02:41]}  Nf5 {[%clk 0:02:39]} 15. g3 {[%clk 0:02:36]}  c5 {[%clk 0:02:32]} 16. Bxf5 {[%clk 0:01:56]}  exf5 {[%clk 0:02:30]} 17. dxc5 {[%clk 0:01:56]}  Qxd1 {[%clk 0:02:29]} 18. Rxd1 {[%clk 0:01:57]}  Bxe5 {[%clk 0:02:29]} 19. Bxh6 {[%clk 0:01:57]}  Rfd8 {[%clk 0:02:27]} 20. cxb6 {[%clk 0:01:57]}  Bf6 {[%clk 0:02:14]} 21. Be3 {[%clk 0:01:03]}  Rxd1+ {[%clk 0:02:12]} 22. Rxd1 {[%clk 0:01:02]}  Rd8 {[%clk 0:02:13]} 23. Rxd8+ {[%clk 0:01:01]}  Bxd8 {[%clk 0:02:12]} 24. a5 {[%clk 0:00:56]}  Bf6 {[%clk 0:02:09]} 25. f4 {[%clk 0:00:52]}  Kf8 {[%clk 0:02:08]} 26. Kf2 {[%clk 0:00:51]}  Ke7 {[%clk 0:02:08]} 27. Bc5+ {[%clk 0:00:51]}  Ke6 {[%clk 0:02:07]} 28. Ke3 {[%clk 0:00:51]}  Kd5 {[%clk 0:02:07]} 29. Bf8 {[%clk 0:00:34]}  Kc4 {[%clk 0:02:06]} 30. Ba3 {[%clk 0:00:23]}  Kb3 {[%clk 0:01:54]} 31. Kd3 {[%clk 0:00:20]}  Bc6 {[%clk 0:01:52]} 32. Bc5 {[%clk 0:00:14]}  Kxb2 {[%clk 0:01:50]} 33. Bd4 {[%clk 0:00:14]}  Be7 {[%clk 0:01:49]} 34. Be5 {[%clk 0:00:11]}  Kb3 {[%clk 0:01:48]} 35. Kd4 {[%clk 0:00:12]}  Ka4 {[%clk 0:01:47]} 36. Bc7 {[%clk 0:00:12]}  Kb5 {[%clk 0:01:43]} 37. Ke5 {[%clk 0:00:11]}  Bb7 {[%clk 0:01:23]} 38. Bd6 {[%clk 0:00:08]}  Bd8 {[%clk 0:01:22]} 39. Bc7 {[%clk 0:00:08]}  Bxc7+ {[%clk 0:01:16]} 40. bxc7 {[%clk 0:00:09]}  Kxa5 {[%clk 0:01:17]} 41. Kd6 {[%clk 0:00:10]}  Kb5 {[%clk 0:01:13]} 0-1


[Site "https://www.chess.com"]

[Event "Titled Tuesday Blitz January 18 2022"]
[White "Pranav, V"]
[Black "Nguyen Hong Nhung"]
[WhiteFideId "25060783"]
[BlackFideId "12412201"]
[WhiteElo "2349"]
[BlackElo "1661"]
[Result "0-1"]
[Round "01"]
[TimeControl "180+1"]
[Date "2022.01.18"]
[WhiteClock "0:00:01"]
[BlackClock "0:00:23"]

1. e4 {[%clk 0:02:30]}  c5 {[%clk 0:02:58]} 2. Nf3 {[%clk 0:02:28]}  e6 {[%clk 0:02:58]} 3. b3 {[%clk 0:02:28]}  Nc6 {[%clk 0:02:57]} 4. Bb2 {[%clk 0:02:26]}  d6 {[%clk 0:02:57]} 5. g3 {[%clk 0:02:24]}  e5 {[%clk 0:02:57]} 6. Bg2 {[%clk 0:02:23]}  g6 {[%clk 0:02:57]} 7. O-O {[%clk 0:02:21]}  Bg7 {[%clk 0:02:57]} 8. c3 {[%clk 0:02:21]}  Nge7 {[%clk 0:02:55]} 9. d4 {[%clk 0:02:09]}  exd4 {[%clk 0:02:51]} 10. cxd4 {[%clk 0:02:10]}  Bg4 {[%clk 0:02:49]} 11. e5 {[%clk 0:01:54]}  cxd4 {[%clk 0:02:37]} 12. exd6 {[%clk 0:01:36]}  Qxd6 {[%clk 0:02:38]} 13. Nbd2 {[%clk 0:01:35]}  O-O {[%clk 0:02:34]} 14. h3 {[%clk 0:01:34]}  Bxf3 {[%clk 0:02:22]} 15. Qxf3 {[%clk 0:01:35]}  Rad8 {[%clk 0:02:20]} 16. Rfe1 {[%clk 0:01:33]}  Rfe8 {[%clk 0:02:15]} 17. Nc4 {[%clk 0:01:31]}  Qf6 {[%clk 0:02:09]} 18. Qd1 {[%clk 0:01:24]}  Nf5 {[%clk 0:02:04]} 19. a3 {[%clk 0:01:22]}  b5 {[%clk 0:01:58]} 20. Nd2 {[%clk 0:01:20]}  Ne5 {[%clk 0:01:54]} 21. Ne4 {[%clk 0:01:19]}  Qb6 {[%clk 0:01:53]} 22. Qd2 {[%clk 0:00:56]}  Bh6 {[%clk 0:01:48]} 23. Qd1 {[%clk 0:00:46]}  Re6 {[%clk 0:01:42]} 24. a4 {[%clk 0:00:41]}  b4 {[%clk 0:01:37]} 25. Bf1 {[%clk 0:00:26]}  a5 {[%clk 0:01:17]} 26. Bd3 {[%clk 0:00:23]}  Nd6 {[%clk 0:01:07]} 27. Nxd6 {[%clk 0:00:17]}  Qxd6 {[%clk 0:01:08]} 28. Be4 {[%clk 0:00:12]}  d3 {[%clk 0:01:01]} 29. Bg2 {[%clk 0:00:06]}  d2 {[%clk 0:00:59]} 30. Re4 {[%clk 0:00:06]}  Nd3 {[%clk 0:00:54]} 31. Rd4 {[%clk 0:00:03]}  Qxd4 {[%clk 0:00:27]} 32. Bxd4 {[%clk 0:00:02]}  Re1+ {[%clk 0:00:27]} 33. Bf1 {[%clk 0:00:01]}  Rxd1 {[%clk 0:00:23]} 0-1


[Site "https://www.chess.com"]

[Event "Titled Tuesday Blitz January 18 2022"]
[White "Raja Rithvik R"]
[Black "Gnechko, Ruslan"]
[WhiteFideId "35007394"]
[BlackFideId "14135868"]
[WhiteElo "2255"]
[BlackElo "2289"]
[Result "1-0"]
[Round "01"]
[TimeControl "180+1"]
[Date "2022.01.18"]
[WhiteClock "0:00:11"]
[BlackClock "0:00:12"]

1. b3 {[%clk 0:02:59]}  d5 {[%clk 0:02:59]} 2. Bb2 {[%clk 0:03:00]}  c6 {[%clk 0:02:59]} 3. e3 {[%clk 0:03:00]}  Nf6 {[%clk 0:03:00]} 4. f4 {[%clk 0:03:00]}  h6 {[%clk 0:02:57]} 5. Nf3 {[%clk 0:03:01]}  Bg4 {[%clk 0:02:58]} 6. Be2 {[%clk 0:03:00]}  Bxf3 {[%clk 0:02:58]} 7. Bxf3 {[%clk 0:03:00]}  Nbd7 {[%clk 0:02:58]} 8. O-O {[%clk 0:03:00]}  Qc7 {[%clk 0:02:59]} 9. a4 {[%clk 0:02:58]}  e5 {[%clk 0:02:59]} 10. fxe5 {[%clk 0:02:56]}  Nxe5 {[%clk 0:02:59]} 11. Nc3 {[%clk 0:02:56]}  Bd6 {[%clk 0:02:59]} 12. h3 {[%clk 0:02:53]}  O-O-O {[%clk 0:02:58]} 13. a5 {[%clk 0:02:51]}  a6 {[%clk 0:02:58]} 14. Na4 {[%clk 0:02:50]}  Qxa5 {[%clk 0:02:55]} 15. Bd4 {[%clk 0:02:51]}  Nxf3+ {[%clk 0:02:46]} 16. Qxf3 {[%clk 0:02:48]}  Qxd2 {[%clk 0:02:43]} 17. Rf2 {[%clk 0:02:39]}  Qb4 {[%clk 0:02:38]} 18. c3 {[%clk 0:02:24]}  Qb5 {[%clk 0:02:35]} 19. c4 {[%clk 0:01:47]}  dxc4 {[%clk 0:02:25]} 20. bxc4 {[%clk 0:01:47]}  Qg5 {[%clk 0:02:22]} 21. Rb2 {[%clk 0:01:24]}  Rhe8 {[%clk 0:02:10]} 22. Rab1 {[%clk 0:01:13]}  Re7 {[%clk 0:02:01]} 23. Rxb7 {[%clk 0:01:10]}  Ne4 {[%clk 0:01:44]} 24. Rxe7 {[%clk 0:00:54]}  Qxe7 {[%clk 0:01:39]} 25. Qf5+ {[%clk 0:00:54]}  Qe6 {[%clk 0:01:36]} 26. Nb6+ {[%clk 0:00:54]}  Kc7 {[%clk 0:01:15]} 27. Qa5 {[%clk 0:00:54]}  Rb8 {[%clk 0:01:10]} 28. Qxa6 {[%clk 0:00:41]}  Nd2 {[%clk 0:00:55]} 29. Qa7+ {[%clk 0:00:18]}  Kd8 {[%clk 0:00:50]} 30. Rd1 {[%clk 0:00:18]}  Nb3 {[%clk 0:00:31]} 31. Be5 {[%clk 0:00:11]}  Rxb6 {[%clk 0:00:12]} 32. Rxd6+ {[%clk 0:00:10]}  Qxd6 {[%clk 0:00:12]} 33. Qxb6+ {[%clk 0:00:10]}  Ke7 {[%clk 0:00:11]} 34. Bxd6+ {[%clk 0:00:11]}  Kxd6 {[%clk 0:00:12]} 35. Qxb3 {[%clk 0:00:11]} 1-0


[Site "https://www.chess.com"]

[Event "Titled Tuesday Blitz January 18 2022"]
[White "Rangel, Daniel"]
[Black "Lorparizangeneh, Shahin"]
[WhiteFideId "2124475"]
[BlackFideId "12521604"]
[WhiteElo "2187"]
[BlackElo "2525"]
[Result "1/2-1/2"]
[Round "01"]
[TimeControl "180+1"]
[Date "2022.01.18"]
[WhiteClock "0:00:08"]
[BlackClock "0:00:18"]

1. e4 {[%clk 0:02:45]}  c5 {[%clk 0:02:58]} 2. Nf3 {[%clk 0:02:44]}  Nc6 {[%clk 0:02:58]} 3. d4 {[%clk 0:02:40]}  cxd4 {[%clk 0:02:58]} 4. Nxd4 {[%clk 0:02:41]}  Nf6 {[%clk 0:02:58]} 5. Nc3 {[%clk 0:02:40]}  d6 {[%clk 0:02:59]} 6. Nxc6 {[%clk 0:02:36]}  bxc6 {[%clk 0:02:58]} 7. g3 {[%clk 0:02:36]}  g6 {[%clk 0:02:50]} 8. Bg2 {[%clk 0:02:37]}  Ba6 {[%clk 0:02:50]} 9. e5 {[%clk 0:02:31]}  Nd7 {[%clk 0:02:41]} 10. exd6 {[%clk 0:02:27]}  exd6 {[%clk 0:02:37]} 11. Qd4 {[%clk 0:01:59]}  Rg8 {[%clk 0:02:11]} 12. Bxc6 {[%clk 0:01:41]}  Rc8 {[%clk 0:02:10]} 13. Qe4+ {[%clk 0:01:39]}  Be7 {[%clk 0:02:02]} 14. Bf4 {[%clk 0:01:28]}  f5 {[%clk 0:01:28]} 15. Qe6 {[%clk 0:01:12]}  Rf8 {[%clk 0:01:24]} 16. Ba4 {[%clk 0:01:01]}  Bc4 {[%clk 0:01:21]} 17. Qe3 {[%clk 0:00:56]}  Qb6 {[%clk 0:01:18]} 18. Qxb6 {[%clk 0:00:47]}  axb6 {[%clk 0:01:17]} 19. O-O-O {[%clk 0:00:47]}  Rf6 {[%clk 0:01:14]} 20. Rhe1 {[%clk 0:00:41]}  Kd8 {[%clk 0:01:09]} 21. Bg5 {[%clk 0:00:31]}  Re6 {[%clk 0:01:09]} 22. Bxe7+ {[%clk 0:00:21]}  Kxe7 {[%clk 0:01:07]} 23. Rxe6+ {[%clk 0:00:16]}  Bxe6 {[%clk 0:01:06]} 24. Bxd7 {[%clk 0:00:12]}  Kxd7 {[%clk 0:01:06]} 25. Nd5 {[%clk 0:00:13]}  Rc6 {[%clk 0:00:42]} 26. Nf6+ {[%clk 0:00:09]}  Ke7 {[%clk 0:00:42]} 27. Nxh7 {[%clk 0:00:09]}  Bxa2 {[%clk 0:00:42]} 28. Ng5 {[%clk 0:00:06]}  Kf6 {[%clk 0:00:41]} 29. Nf3 {[%clk 0:00:05]}  Bf7 {[%clk 0:00:39]} 30. Nd4 {[%clk 0:00:06]}  Rc5 {[%clk 0:00:39]} 31. b3 {[%clk 0:00:06]}  Ke7 {[%clk 0:00:36]} 32. h4 {[%clk 0:00:06]}  Re5 {[%clk 0:00:34]} 33. Kd2 {[%clk 0:00:06]}  Rd5 {[%clk 0:00:34]} 34. Kc3 {[%clk 0:00:05]}  Rc5+ {[%clk 0:00:35]} 35. Kd3 {[%clk 0:00:05]}  Re5 {[%clk 0:00:35]} 36. Rd2 {[%clk 0:00:05]}  Kd7 {[%clk 0:00:33]} 37. Re2 {[%clk 0:00:05]}  Ra5 {[%clk 0:00:34]} 38. c4 {[%clk 0:00:05]}  Ra1 {[%clk 0:00:33]} 39. Kc3 {[%clk 0:00:05]}  Rc1+ {[%clk 0:00:33]} 40. Kb2 {[%clk 0:00:05]}  Rf1 {[%clk 0:00:33]} 41. Rd2 {[%clk 0:00:05]}  Re1 {[%clk 0:00:28]} 42. Nb5 {[%clk 0:00:05]}  Re6 {[%clk 0:00:29]} 43. Nc3 {[%clk 0:00:04]}  Re5 {[%clk 0:00:28]} 44. Nd5 {[%clk 0:00:05]}  b5 {[%clk 0:00:28]} 45. Ne3 {[%clk 0:00:04]}  bxc4 {[%clk 0:00:25]} 46. Nxc4 {[%clk 0:00:04]}  Bxc4 {[%clk 0:00:22]} 47. bxc4 {[%clk 0:00:05]}  Re4 {[%clk 0:00:22]} 48. Kc3 {[%clk 0:00:06]}  Kc6 {[%clk 0:00:22]} 49. Rd4 {[%clk 0:00:06]}  Re2 {[%clk 0:00:22]} 50. Rd2 {[%clk 0:00:06]}  Re4 {[%clk 0:00:22]} 51. Rd4 {[%clk 0:00:06]}  Re2 {[%clk 0:00:22]} 52. Rd2 {[%clk 0:00:07]}  Re1 {[%clk 0:00:20]} 53. Ra2 {[%clk 0:00:07]}  Rc1+ {[%clk 0:00:20]} 54. Kd2 {[%clk 0:00:07]}  Rxc4 {[%clk 0:00:20]} 55. Rc2 {[%clk 0:00:07]}  Rxc2+ {[%clk 0:00:18]} 56. Kxc2 {[%clk 0:00:08]}  Kd5 {[%clk 0:00:19]} 57. Kd3 {[%clk 0:00:08]}  Ke5 {[%clk 0:00:20]} 58. f3 {[%clk 0:00:04]}  Kd5 {[%clk 0:00:20]} 59. g4 {[%clk 0:00:04]}  fxg4 {[%clk 0:00:19]} 60. fxg4 {[%clk 0:00:04]}  Ke5 {[%clk 0:00:19]} 61. h5 {[%clk 0:00:05]}  gxh5 {[%clk 0:00:18]} 62. gxh5 {[%clk 0:00:05]}  Kf6 {[%clk 0:00:18]} 63. Kd4 {[%clk 0:00:06]}  Kg5 {[%clk 0:00:18]} 64. Kd5 {[%clk 0:00:07]}  Kxh5 {[%clk 0:00:18]} 65. Kxd6 {[%clk 0:00:08]} 1/2-1/2


[Site "https://www.chess.com"]

[Event "Titled Tuesday Blitz January 18 2022"]
[White "Sadykov, Ramil"]
[Black "Rustemov, Alexander"]
[WhiteFideId "24113590"]
[BlackFideId "4119002"]
[WhiteElo "2300"]
[BlackElo "2885"]
[Result "0-1"]
[Round "01"]
[TimeControl "180+1"]
[Date "2022.01.18"]
[WhiteClock "0:00:01"]
[BlackClock "0:00:23"]

1. c4 {[%clk 0:02:54]}  c5 {[%clk 0:02:58]} 2. Nf3 {[%clk 0:02:52]}  g6 {[%clk 0:02:58]} 3. Nc3 {[%clk 0:02:50]}  Bg7 {[%clk 0:02:58]} 4. d4 {[%clk 0:02:51]}  cxd4 {[%clk 0:02:59]} 5. Nxd4 {[%clk 0:02:52]}  Nc6 {[%clk 0:02:59]} 6. Nc2 {[%clk 0:02:52]}  Bxc3+ {[%clk 0:02:59]} 7. bxc3 {[%clk 0:02:53]}  Qa5 {[%clk 0:03:00]} 8. Bd2 {[%clk 0:02:51]}  Nf6 {[%clk 0:03:00]} 9. f3 {[%clk 0:02:39]}  d6 {[%clk 0:03:00]} 10. e4 {[%clk 0:02:39]}  Be6 {[%clk 0:03:00]} 11. Nd4 {[%clk 0:02:36]}  Rc8 {[%clk 0:02:49]} 12. Qb3 {[%clk 0:02:26]}  b6 {[%clk 0:02:47]} 13. Qb5 {[%clk 0:02:13]}  Qxb5 {[%clk 0:02:45]} 14. cxb5 {[%clk 0:02:09]}  Na5 {[%clk 0:02:41]} 15. Nxe6 {[%clk 0:02:00]}  fxe6 {[%clk 0:02:42]} 16. Bd3 {[%clk 0:02:00]}  Nd7 {[%clk 0:02:32]} 17. Ke2 {[%clk 0:01:49]}  Nc5 {[%clk 0:02:22]} 18. Rac1 {[%clk 0:01:46]}  Nxd3 {[%clk 0:02:13]} 19. Kxd3 {[%clk 0:01:47]}  Nc4 {[%clk 0:02:13]} 20. Bh6 {[%clk 0:01:32]}  Kd7 {[%clk 0:02:11]} 21. Bg7 {[%clk 0:01:14]}  Rhg8 {[%clk 0:02:09]} 22. Bd4 {[%clk 0:01:15]}  e5 {[%clk 0:02:05]} 23. Bf2 {[%clk 0:01:14]}  Rc7 {[%clk 0:01:59]} 24. Rc2 {[%clk 0:01:08]}  Na3 {[%clk 0:01:56]} 25. Rb2 {[%clk 0:01:06]}  Rgc8 {[%clk 0:01:55]} 26. Rc1 {[%clk 0:01:06]}  Rc4 {[%clk 0:01:51]} 27. Rb3 {[%clk 0:01:01]}  Ra4 {[%clk 0:01:51]} 28. Bh4 {[%clk 0:00:40]}  Rc5 {[%clk 0:01:45]} 29. Bf2 {[%clk 0:00:24]}  Rxb5 {[%clk 0:01:43]} 30. c4 {[%clk 0:00:25]}  Rba5 {[%clk 0:01:42]} 31. Be1 {[%clk 0:00:22]}  Ra6 {[%clk 0:01:41]} 32. Bb4 {[%clk 0:00:20]}  Nxc4 {[%clk 0:01:19]} 33. Rxc4 {[%clk 0:00:18]}  Rxa2 {[%clk 0:01:20]} 34. Rc2 {[%clk 0:00:17]}  Ra1 {[%clk 0:01:14]} 35. Bd2 {[%clk 0:00:14]}  R6a3 {[%clk 0:01:11]} 36. Rxa3 {[%clk 0:00:12]}  Rxa3+ {[%clk 0:01:12]} 37. Kc4 {[%clk 0:00:13]}  a6 {[%clk 0:01:02]} 38. Bc3 {[%clk 0:00:12]}  b5+ {[%clk 0:01:01]} 39. Kb4 {[%clk 0:00:09]}  Ra4+ {[%clk 0:01:00]} 40. Kb3 {[%clk 0:00:10]}  Rc4 {[%clk 0:00:49]} 41. Bb2 {[%clk 0:00:10]}  Ra4 {[%clk 0:00:46]} 42. g3 {[%clk 0:00:07]}  g5 {[%clk 0:00:43]} 43. h3 {[%clk 0:00:07]}  h5 {[%clk 0:00:43]} 44. h4 {[%clk 0:00:07]}  gxh4 {[%clk 0:00:36]} 45. gxh4 {[%clk 0:00:08]}  e6 {[%clk 0:00:34]} 46. Rg2 {[%clk 0:00:08]}  d5 {[%clk 0:00:32]} 47. Rg5 {[%clk 0:00:05]}  dxe4 {[%clk 0:00:30]} 48. fxe4 {[%clk 0:00:06]}  Rxe4 {[%clk 0:00:30]} 49. Rxh5 {[%clk 0:00:07]}  Kd6 {[%clk 0:00:29]} 50. Rh8 {[%clk 0:00:05]}  a5 {[%clk 0:00:28]} 51. h5 {[%clk 0:00:04]}  Re3+ {[%clk 0:00:28]} 52. Kc2 {[%clk 0:00:05]}  Re2+ {[%clk 0:00:28]} 53. Kc1 {[%clk 0:00:02]}  Rh2 {[%clk 0:00:27]} 54. h6 {[%clk 0:00:02]}  Kd5 {[%clk 0:00:26]} 55. h7 {[%clk 0:00:01]}  Ke4 {[%clk 0:00:26]} 56. Kd1 {[%clk 0:00:01]}  a4 {[%clk 0:00:26]} 57. Bc1 {[%clk 0:00:01]}  b4 {[%clk 0:00:23]} 0-1


[Site "https://www.chess.com"]

[Event "Titled Tuesday Blitz January 18 2022"]
[White "Sanal, Vahap"]
[Black "Ianov, Viktor"]
[WhiteFideId "6300545"]
[BlackFideId "14102730"]
[WhiteElo "2603"]
[BlackElo "2215"]
[Result "1-0"]
[Round "01"]
[TimeControl "180+1"]
[Date "2022.01.18"]
[WhiteClock "0:00:07"]
[BlackClock "0:00:08"]

1. e4 {[%clk 0:03:00]}  d6 {[%clk 0:02:59]} 2. d4 {[%clk 0:02:59]}  g6 {[%clk 0:02:59]} 3. Nf3 {[%clk 0:02:59]}  Bg7 {[%clk 0:02:59]} 4. c3 {[%clk 0:03:00]}  Nf6 {[%clk 0:02:57]} 5. Bd3 {[%clk 0:03:00]}  O-O {[%clk 0:02:57]} 6. O-O {[%clk 0:03:00]}  Nbd7 {[%clk 0:02:57]} 7. Be3 {[%clk 0:03:00]}  e5 {[%clk 0:02:57]} 8. Nbd2 {[%clk 0:03:00]}  b6 {[%clk 0:02:57]} 9. h3 {[%clk 0:03:00]}  Bb7 {[%clk 0:02:57]} 10. Re1 {[%clk 0:03:00]}  Re8 {[%clk 0:02:56]} 11. Qc2 {[%clk 0:03:01]}  c6 {[%clk 0:02:55]} 12. a4 {[%clk 0:03:01]}  a6 {[%clk 0:02:55]} 13. Rad1 {[%clk 0:02:58]}  Qc7 {[%clk 0:02:54]} 14. b4 {[%clk 0:02:55]}  c5 {[%clk 0:02:51]} 15. bxc5 {[%clk 0:02:49]}  bxc5 {[%clk 0:02:50]} 16. d5 {[%clk 0:02:49]}  a5 {[%clk 0:02:47]} 17. Bb5 {[%clk 0:02:48]}  Reb8 {[%clk 0:02:45]} 18. Qd3 {[%clk 0:02:42]}  Nb6 {[%clk 0:02:44]} 19. Rb1 {[%clk 0:02:39]}  Bc8 {[%clk 0:02:40]} 20. Bc6 {[%clk 0:02:32]}  Ba6 {[%clk 0:02:38]} 21. c4 {[%clk 0:02:25]}  Ra7 {[%clk 0:02:35]} 22. Rb3 {[%clk 0:02:20]}  Nc8 {[%clk 0:02:28]} 23. Rxb8 {[%clk 0:02:18]}  Qxb8 {[%clk 0:02:28]} 24. Rb1 {[%clk 0:02:18]}  Qc7 {[%clk 0:02:28]} 25. Qb3 {[%clk 0:02:18]}  Bf8 {[%clk 0:02:17]} 26. Bg5 {[%clk 0:02:10]}  Kg7 {[%clk 0:02:14]} 27. Qe3 {[%clk 0:02:05]}  Ne7 {[%clk 0:02:09]} 28. Bb5 {[%clk 0:01:57]}  Bc8 {[%clk 0:02:08]} 29. Nh2 {[%clk 0:01:44]}  Nfg8 {[%clk 0:02:01]} 30. Qc3 {[%clk 0:01:38]}  h6 {[%clk 0:01:58]} 31. Be3 {[%clk 0:01:39]}  Kh7 {[%clk 0:01:53]} 32. Nb3 {[%clk 0:01:33]}  Bg7 {[%clk 0:01:51]} 33. Qd3 {[%clk 0:01:30]}  f5 {[%clk 0:01:50]} 34. Rf1 {[%clk 0:01:18]}  fxe4 {[%clk 0:01:44]} 35. Qxe4 {[%clk 0:01:18]}  Bf5 {[%clk 0:01:44]} 36. Qf3 {[%clk 0:01:12]}  Nf6 {[%clk 0:01:42]} 37. Qe2 {[%clk 0:01:11]}  g5 {[%clk 0:01:32]} 38. Bc1 {[%clk 0:01:04]}  Bg6 {[%clk 0:01:31]} 39. Ng4 {[%clk 0:01:00]}  Nf5 {[%clk 0:01:28]} 40. Nxf6+ {[%clk 0:00:57]}  Bxf6 {[%clk 0:01:28]} 41. Qd1 {[%clk 0:00:53]}  Nd4 {[%clk 0:01:26]} 42. Nxd4 {[%clk 0:00:49]}  cxd4 {[%clk 0:01:26]} 43. Ba3 {[%clk 0:00:50]}  e4 {[%clk 0:01:23]} 44. Qg4 {[%clk 0:00:48]}  h5 {[%clk 0:01:17]} 45. Qe6 {[%clk 0:00:47]}  Be5 {[%clk 0:01:16]} 46. c5 {[%clk 0:00:40]}  dxc5 {[%clk 0:01:10]} 47. Bxc5 {[%clk 0:00:40]}  Qxc5 {[%clk 0:01:07]} 48. Qxe5 {[%clk 0:00:40]}  Re7 {[%clk 0:01:07]} 49. Qxg5 {[%clk 0:00:40]}  Qd6 {[%clk 0:01:01]} 50. Bc6 {[%clk 0:00:31]}  d3 {[%clk 0:00:59]} 51. Qe3 {[%clk 0:00:31]}  Qb4 {[%clk 0:00:53]} 52. Qg5 {[%clk 0:00:25]}  Qd6 {[%clk 0:00:52]} 53. Qe3 {[%clk 0:00:25]}  Qb4 {[%clk 0:00:52]} 54. g4 {[%clk 0:00:24]}  hxg4 {[%clk 0:00:50]} 55. hxg4 {[%clk 0:00:25]}  Qd6 {[%clk 0:00:50]} 56. Kg2 {[%clk 0:00:25]}  Kg7 {[%clk 0:00:50]} 57. Rh1 {[%clk 0:00:23]}  Qe5 {[%clk 0:00:48]} 58. Qh6+ {[%clk 0:00:24]}  Kf7 {[%clk 0:00:48]} 59. Qe3 {[%clk 0:00:22]}  Kg7 {[%clk 0:00:46]} 60. Qh3 {[%clk 0:00:18]}  Qf4 {[%clk 0:00:41]} 61. Qh8+ {[%clk 0:00:17]}  Kf7 {[%clk 0:00:41]} 62. Qh3 {[%clk 0:00:11]}  e3 {[%clk 0:00:40]} 63. d6 {[%clk 0:00:07]}  Qxd6 {[%clk 0:00:36]} 64. Qf3+ {[%clk 0:00:07]}  Kg7 {[%clk 0:00:35]} 65. fxe3 {[%clk 0:00:08]}  d2 {[%clk 0:00:34]} 66. Bd5 {[%clk 0:00:05]}  Re5 {[%clk 0:00:32]} 67. e4 {[%clk 0:00:05]}  Rxd5 {[%clk 0:00:29]} 68. exd5 {[%clk 0:00:05]}  Qe5 {[%clk 0:00:27]} 69. Qf2 {[%clk 0:00:01]}  Be4+ {[%clk 0:00:26]} 70. Kh3 {[%clk 0:00:01]}  Qg5 {[%clk 0:00:24]} 71. Qd4+ {[%clk 0:00:01]}  Qf6 {[%clk 0:00:21]} 72. Qxe4 {[%clk 0:00:01]}  Qc3+ {[%clk 0:00:20]} 73. Kh4 {[%clk 0:00:01]}  Qf6+ {[%clk 0:00:18]} 74. g5 {[%clk 0:00:02]}  Qf2+ {[%clk 0:00:18]} 75. Kg4 {[%clk 0:00:02]}  Qe1 {[%clk 0:00:14]} 76. Qf3 {[%clk 0:00:02]}  Qe5 {[%clk 0:00:10]} 77. Rd1 {[%clk 0:00:03]}  Qd4+ {[%clk 0:00:09]} 78. Kg3 {[%clk 0:00:04]}  Qb2 {[%clk 0:00:08]} 79. Qf6+ {[%clk 0:00:04]}  Qxf6 {[%clk 0:00:08]} 80. gxf6+ {[%clk 0:00:05]}  Kxf6 {[%clk 0:00:08]} 81. Rxd2 {[%clk 0:00:06]}  Ke5 {[%clk 0:00:08]} 82. Rb2 {[%clk 0:00:07]} 1-0


[Site "https://www.chess.com"]